fUST/lending_fUST_20250726
["ID","MTS","AMOUNT","RATE_DAILY","PERIOD"]
[375115497,1753533044527,-460.0,0.00021917,2]
[375115499,1753533044536,-564.0,0.00021918,2]
[375115501,1753533044546,-685.0,0.00021918,2]
[375115503,1753533044555,-153.0,0.00021918,2]
[375115505,1753533044565,-153.0,0.00021918,2]
[375115507,1753533044574,-153.0,0.00021918,2]
[375115508,1753533044584,-153.0,0.00021918,2]
[375115510,1753533044593,-153.0,0.00021918,2]
[375115512,1753533044603,-153.0,0.00021918,2]
[375115514,1753533044613,-153.0,0.00021918,2]
[375115516,1753533044623,-153.0,0.00021918,2]
[375115518,1753533044632,-153.0,0.00021918,2]
[375115520,1753533044642,-153.0,0.00021918,2]
[375115522,1753533044651,-153.0,0.00021918,2]
[375115533,1753533044751,-153.0,0.00021918,2]
[375115535,1753533044760,-153.0,0.00021918,2]
[375115537,1753533044771,-153.0,0.00021918,2]
[375115539,1753533044780,-153.0,0.00021918,2]
[375115541,1753533044790,-153.0,0.00021918,2]
[375115543,1753533044800,-153.0,0.00021918,2]
[375115545,1753533044810,-153.0,0.00021918,2]
[375115547,1753533044819,-153.0,0.00021918,2]
[375115549,1753533044828,-153.0,0.00021918,2]
[375115551,1753533044837,-153.0,0.00021918,2]
[375115553,1753533044847,-153.0,0.00021918,2]
[375115554,1753533044855,-153.0,0.00021918,2]
[375115556,1753533044865,-153.0,0.00021918,2]
[375115559,1753533044875,-153.0,0.00021918,2]
[375115560,1753533044884,-153.0,0.00021918,2]
[375115562,1753533044894,-153.0,0.00021918,2]
[375115564,1753533044903,-153.0,0.00021918,2]
[375115566,1753533044913,-153.0,0.00021918,2]
[375115568,1753533044922,-151.0,0.00021967,5]
[375115570,1753533044933,-500.0,0.00021973,2]
[375115572,1753533044943,-500.0,0.00021973,2]
[375115575,1753533044953,-500.0,0.00021973,2]
[375115576,1753533044967,-514.16056292,0.00021973,2]
[375115578,1753533044977,-500.0,0.00021973,2]
[375115580,1753533044986,-500.0,0.00021973,2]
[375115583,1753533044996,-2500.0,0.00021977,2]
[375115584,1753533045006,-1558.17,0.00022,7]
[375115586,1753533045016,-2885.87,0.00022,7]
[375115588,1753533045026,-150.0,0.00022,2]
[375115590,1753533045035,-353.20680426,0.00022,2]
[375115592,1753533045046,-59819.56292027,0.00022,2]
[375115594,1753533045056,-71045.07065582,0.00022,5]
[375115596,1753533045070,-551.33143372,0.00022,2]
[375115598,1753533045079,-222.93,0.00022,2]
[375115600,1753533045088,-34997.94,0.00022,2]
[375115602,1753533045098,-203.0,0.00022,2]
[375115604,1753533045108,-5000.0,0.000221,2]
[375115606,1753533045118,-562.8509094,0.00022191,2]
[375115608,1753533045128,-514.19,0.00022191,2]
[375115610,1753533045137,-460.0,0.00022191,2]
[375115612,1753533045147,-460.0,0.00022191,2]
[375115614,1753533045156,-460.0,0.00022191,2]
[375115616,1753533045165,-2412.0,0.00022191,2]
[375115618,1753533045175,-1340.09,0.00022191,2]
[375115620,1753533045184,-511.7946286,0.00022191,2]
[375115622,1753533045194,-1181.35,0.00022191,2]
[375115624,1753533045203,-985.33,0.00022191,2]
[375115626,1753533045213,-978.32,0.00022191,2]
[375115628,1753533045223,-460.0,0.00022191,2]
[375115630,1753533045232,-761.41,0.00022191,2]
[375115632,1753533045242,-657.74,0.00022191,2]
[375115634,1753533045251,-217.98521431,0.00022191,2]
[375115636,1753533045261,-460.0,0.00022191,2]
[375115638,1753533045270,-460.0,0.00022191,2]
[375115640,1753533045280,-521.34454124,0.00022191,2]
[375115642,1753533045289,-1022.6,0.00022191,2]
[375115644,1753533045299,-2685.47,0.00022191,2]
[375115646,1753533045308,-548.03,0.00022191,2]
[375115648,1753533045317,-460.0,0.00022191,2]
[375115650,1753533045327,-460.0,0.00022191,2]
[375115652,1753533045336,-460.0,0.00022191,2]
[375115654,1753533045345,-460.0,0.00022191,2]
[375115656,1753533045355,-538.95102404,0.00022191,2]
[375115658,1753533045364,-564.0,0.00022192,2]
[375115660,1753533045374,-685.0,0.00022192,2]
[375115662,1753533045383,-203.0,0.00022192,7]
[375115664,1753533045393,-5217.19,0.000222,7]
[375115666,1753533045403,-500.0,0.0002222,2]
[375115668,1753533045412,-356.99,0.00022256,2]
[375115670,1753533045422,-260.0,0.00022348,2]
[375115672,1753533045431,-188.44459269,0.00022382,2]
[375115674,1753533045441,-460.0,0.00022382,2]
[375115676,1753533045451,-829.87,0.00022382,2]
[375115678,1753533045461,-460.0,0.00022382,2]
[375115680,1753533045470,-974.85,0.00022382,2]
[375115682,1753533045480,-460.0,0.00022382,2]
[375115684,1753533045490,-909.94,0.00022382,2]
[375115686,1753533045499,-1273.74,0.00022382,2]
[375115688,1753533045509,-736.68,0.00022382,2]
[375115690,1753533045519,-460.0,0.00022382,2]
[375115692,1753533045528,-151.0,0.00022386,5]
[375115694,1753533045538,-514.19,0.00022465,2]
[375115696,1753533045548,-460.0,0.00022465,2]
[375115698,1753533045558,-1780.74,0.00022465,2]
[375115700,1753533045567,-460.0,0.00022465,2]
[375115702,1753533045576,-460.0,0.00022465,2]
[375115704,1753533045585,-2412.0,0.00022465,2]
[375115706,1753533045595,-1340.09,0.00022465,2]
[375115708,1753533045605,-1181.35,0.00022465,2]
[375115710,1753533045614,-985.33,0.00022465,2]
[375115712,1753533045624,-978.32,0.00022465,2]
[375115714,1753533045634,-460.0,0.00022465,2]
[375115715,1753533045643,-761.41,0.00022465,2]
[375115718,1753533045654,-657.74,0.00022465,2]
[375115719,1753533045672,-460.0,0.00022465,2]
[375115721,1753533045682,-497.81711162,0.00022465,2]
[375115723,1753533045691,-1022.6,0.00022465,2]
[375115725,1753533045700,-2685.47,0.00022465,2]
[375115727,1753533045710,-548.03,0.00022465,2]
[375115729,1753533045721,-460.0,0.00022465,2]
[375115731,1753533045730,-460.0,0.00022465,2]
[375115733,1753533045739,-260.25231298,0.00022465,2]
[375115735,1753533045749,-460.0,0.00022465,2]
[375115737,1753533045759,-564.0,0.00022466,2]
[375115739,1753533045768,-685.0,0.00022466,2]
[375115741,1753533045777,-222.93,0.000225,2]
[375115743,1753533045787,-1000.0,0.00022521,2]
[375115745,1753533045796,-500.0,0.00022521,2]
[375115747,1753533045805,-1007.3796883,0.00022521,2]
[375115749,1753533045815,-500.0,0.00022521,2]
[375115751,1753533045825,-3000.0,0.00022525,2]
[375115753,1753533045834,-1000.0,0.000226,2]
[375115755,1753533045843,-231.102,0.00022603,2]
[375115757,1753533045853,-829.87,0.00022656,2]
[375115759,1753533045862,-460.0,0.00022656,2]
[375115761,1753533045872,-974.85,0.00022656,2]
[375115763,1753533045882,-460.0,0.00022656,2]
[375115765,1753533045892,-909.94,0.00022656,2]
[375115767,1753533045902,-1273.74,0.00022656,2]
[375115769,1753533045911,-736.68,0.00022656,2]
[375115771,1753533045921,-514.19,0.00022739,2]
[375115773,1753533045931,-288.90615239,0.00022739,2]
[375115774,1753533045940,-241.87670541,0.00022739,2]
[375115776,1753533045949,-460.0,0.00022739,2]
[375115779,1753533045959,-2412.0,0.00022739,2]
[375115780,1753533045972,-1340.09,0.00022739,2]
[375115782,1753533045982,-1181.35,0.00022739,2]
[375115784,1753533045992,-985.33,0.00022739,2]
[375115786,1753533046001,-978.32,0.00022739,2]
[375115788,1753533046010,-375.9056452,0.00022739,2]
[375115790,1753533046020,-761.41,0.00022739,2]
[375115792,1753533046030,-657.74,0.00022739,2]
[375115794,1753533046040,-460.0,0.00022739,2]
[375115797,1753533046050,-1022.6,0.00022739,2]
[375115799,1753533046059,-2685.47,0.00022739,2]
[375115802,1753533046070,-548.03,0.00022739,2]
[375115804,1753533046079,-158.19879778,0.00022739,2]
[375115806,1753533046088,-460.0,0.00022739,2]
[375115808,1753533046098,-460.0,0.00022739,2]
[375115810,1753533046108,-564.0,0.0002274,2]
[375115812,1753533046118,-685.0,0.0002274,2]
[375115814,1753533046128,-1000.0,0.00022768,2]
[375115816,1753533046138,-587.0,0.00022776,2]
[375115818,1753533046147,-151.0,0.00022805,5]
[375115820,1753533046157,-231.28369723,0.00022871,2]
[375115822,1753533046167,-501.69698606,0.00022873,2]
[375115824,1753533046177,-360.0,0.00022896,2]
[375115826,1753533046186,-576.617764,0.00022896,2]
[375115828,1753533046196,-84936.1887636,0.000229,7]
[375115844,1753533046341,-779.9,0.00019178,2]
[375115846,1753533046350,-779.9,0.00019452,2]
[375115847,1753533046359,-779.9,0.00019726,2]
[375115848,1753533046368,-779.9,0.0002,2]
[375115849,1753533046377,-779.9,0.00020273,2]
[375115850,1753533046386,-779.9,0.00020547,2]
[375115851,1753533046395,-779.9,0.00020821,2]
[375115852,1753533046404,-2025.69879896,0.000229,7]
[375115853,1753533046415,-93725.27830516,0.000229,7]
[375115854,1753533046427,-392.43045428,0.000229,7]
[375115855,1753533046436,-160.0,0.000229,7]
[375115856,1753533046445,-214.8008262,0.000229,7]
[375115857,1753533046454,-312.16666667,0.000229,7]
[375115858,1753533046463,-476.98041219,0.000229,7]
[375115860,1753533046473,-511.24,0.00022903,2]
[375115862,1753533046482,-568.6,0.00022906,2]
[375115864,1753533046495,-222.93,0.00022911,2]
[375115866,1753533046506,-829.87,0.0002293,2]
[375115868,1753533046515,-460.0,0.0002293,2]
[375115870,1753533046524,-974.85,0.0002293,2]
[375115872,1753533046534,-460.0,0.0002293,2]
[375115874,1753533046543,-909.94,0.0002293,2]
[375115876,1753533046553,-1273.74,0.0002293,2]
[375115878,1753533046562,-736.68,0.0002293,2]
[375115880,1753533046572,-193.07,0.00022995,2]
[375115882,1753533046582,-160.0,0.00023,2]
[375115884,1753533046592,-332.07391848,0.00023,2]
[375115886,1753533046602,-511.24,0.00023003,6]
[375115888,1753533046612,-568.6,0.00023006,7]
[375115890,1753533046621,-514.19,0.00023013,2]
[375115892,1753533046631,-460.0,0.00023013,2]
[375115894,1753533046641,-2412.0,0.00023013,2]
[375115896,1753533046651,-1340.09,0.00023013,2]
[375115898,1753533046663,-1181.35,0.00023013,2]
[375115900,1753533046673,-985.33,0.00023013,2]
[375115902,1753533046682,-978.32,0.00023013,2]
[375115904,1753533046692,-761.41,0.00023013,2]
[375115906,1753533046702,-657.74,0.00023013,2]
[375115908,1753533046721,-460.0,0.00023013,2]
[375115910,1753533046733,-1022.6,0.00023013,2]
[375115912,1753533046743,-2685.47,0.00023013,2]
[375115914,1753533046752,-548.03,0.00023013,2]
[375115916,1753533046762,-460.0,0.00023013,2]
[375115918,1753533046773,-460.0,0.00023013,2]
[375115920,1753533046782,-564.0,0.00023014,2]
[375115922,1753533046791,-685.0,0.00023014,2]
[375115924,1753533046801,-203.0,0.00023014,7]
[375115926,1753533046810,-7086.70549425,0.00023043,7]
[375115928,1753533046819,-626.91030039,0.00023068,2]
[375115930,1753533046829,-3500.0,0.00023073,2]
[375115932,1753533046839,-250.0,0.00023097,2]
[375115934,1753533046849,-1000.0,0.000231,2]
[375115936,1753533046859,-511.24,0.00023103,2]
[375115938,1753533046879,-568.62,0.00023106,6]
[375115940,1753533046890,-160.0,0.0002311,3]
[375115950,1753533046975,-2885.87,0.000232,7]
[375115952,1753533046997,-25518.03754901,0.000232,2]
[375115978,1753533047232,-460.0,0.00019178,2]
[375115980,1753533047242,-151.0,0.00019178,2]
[375115982,1753533047252,-460.0,0.00019451,2]
[375115984,1753533047262,-95.05396305,0.00019452,2]
[375115999,1753533047394,-460.0,0.00019178,2]
[375116001,1753533047403,-364.94603695,0.00019452,2]
[375116003,1753533047414,-460.0,0.00019725,2]
[375116005,1753533047424,-460.0,0.00019726,2]
[375116007,1753533047433,-298.82,0.00019999,2]
[375116009,1753533047443,-779.9,0.00021095,2]
[375116011,1753533047453,-779.9,0.00021369,2]
[375116013,1753533047462,-779.9,0.00021643,2]
[375116015,1753533047471,-779.9,0.00021917,2]
[375116017,1753533047481,-779.9,0.00022191,2]
[375116019,1753533047491,-779.9,0.00022465,2]
[375116021,1753533047500,-779.9,0.00022739,2]
[375116023,1753533047510,-2202.936,0.000229,2]
[375116025,1753533047519,-779.9,0.00023013,2]
[375116027,1753533047529,-9479.90245099,0.000232,2]
[375116029,1753533047538,-511.24,0.00023203,6]
[375116031,1753533047547,-449.46,0.00023204,2]
[375116033,1753533047557,-974.85,0.00023204,2]
[375116035,1753533047566,-460.0,0.00023204,2]
[375116037,1753533047575,-268.63416403,0.00023204,2]
[375119701,1753533224914,-5000.0,0.00018985,6]
[375119702,1753533224935,-186.49875611,0.00019077,2]
[375119703,1753533224957,-186.49875607,0.00019077,2]
[375119704,1753533224979,-186.49875607,0.00019078,2]
[375119705,1753533225001,-186.49875607,0.00019078,2]
[375119706,1753533225024,-186.49875607,0.00019078,2]
[375119707,1753533225046,-300.0,0.00019177,2]
[375119708,1753533225068,-460.0,0.00019178,2]
[375119709,1753533225091,-1042.47,0.00019178,2]
[375119710,1753533225112,-460.0,0.00019178,2]
[375119711,1753533225133,-460.0,0.00019178,2]
[375119712,1753533225156,-652.56,0.00019178,2]
[375119713,1753533225180,-460.0,0.00019178,2]
[375119714,1753533225202,-460.0,0.00019178,2]
[375119715,1753533225224,-460.0,0.00019178,2]
[375119716,1753533225245,-466.27016772,0.00019178,2]
[375119717,1753533225265,-460.0,0.00019178,2]
[375119718,1753533225287,-460.0,0.00019178,2]
[375119719,1753533225309,-470.1,0.00019178,2]
[375119720,1753533225332,-460.0,0.00019178,2]
[375119721,1753533225356,-1169.29,0.00019178,2]
[375119722,1753533225379,-460.0,0.00019178,2]
[375119723,1753533225400,-460.0,0.00019178,2]
[375119724,1753533225421,-460.0,0.00019178,2]
[375119725,1753533225444,-460.0,0.00019178,2]
[375119726,1753533225467,-460.0,0.00019178,2]
[375119727,1753533225489,-468.2387929,0.00019178,2]
[375119728,1753533225511,-500.0,0.00019178,2]
[375119729,1753533225532,-460.0,0.00019178,2]
[375119730,1753533225562,-460.0,0.00019178,2]
[375119731,1753533225584,-460.0,0.00019178,2]
[375119732,1753533225607,-466.07,0.00019178,2]
[375119733,1753533225628,-460.0,0.00019178,2]
[375119734,1753533225650,-460.0,0.00019178,2]
[375119735,1753533225674,-579.21170698,0.00019178,2]
[375119736,1753533225694,-531.78597822,0.00019178,2]
[375119737,1753533225713,-460.0,0.00019178,2]
[375119738,1753533225734,-460.0,0.00019178,2]
[375119739,1753533225755,-460.0,0.00019178,2]
[375119740,1753533225780,-760.71,0.00019178,2]
[375119741,1753533225804,-265.30902897,0.00019178,2]
[375119742,1753533225836,-460.0,0.00019178,2]
[375119743,1753533225862,-460.0,0.00019178,2]
[375119744,1753533225885,-355.49054482,0.00019178,2]
[375119745,1753533306258,-300.0,0.00019177,2]
[375119746,1753533306281,-104.50945518,0.00019178,2]
[375119747,1753533306304,-460.0,0.00019178,2]
[375119748,1753533306326,-460.0,0.00019178,2]
[375119749,1753533306347,-460.0,0.00019178,2]
[375119750,1753533306368,-460.0,0.00019178,2]
[375119751,1753533306391,-460.0,0.00019178,2]
[375119752,1753533306415,-493.76,0.00019178,2]
[375119753,1753533306436,-460.0,0.00019178,2]
[375119754,1753533306458,-460.0,0.00019178,2]
[375119755,1753533306480,-460.0,0.00019178,2]
[375119756,1753533306501,-460.0,0.00019178,2]
[375119757,1753533306523,-460.0,0.00019178,2]
[375119758,1753533306545,-912.77,0.00019178,2]
[375119759,1753533306567,-460.0,0.00019178,2]
[375119760,1753533306588,-460.0,0.00019178,2]
[375119761,1753533306610,-460.0,0.00019178,2]
[375119762,1753533306654,-460.0,0.00019178,2]
[375119763,1753533306677,-912.44,0.00019178,2]
[375119764,1753533306698,-836.52054482,0.00019178,2]
[375119765,1753533406363,-300.0,0.00019177,2]
[375119766,1753533406387,-45.32945518,0.00019178,2]
[375119767,1753533406410,-460.0,0.00019178,2]
[375119768,1753533406434,-598.18,0.00019178,2]
[375119769,1753533406458,-217.98521431,0.00019178,2]
[375119770,1753533406481,-511.7946286,0.00019178,2]
[375119771,1753533406508,-1259.0,0.00019178,2]
[375119772,1753533406536,-460.0,0.00019178,2]
[375119773,1753533406561,-1502.64,0.00019178,2]
[375119774,1753533406584,-460.0,0.00019178,2]
[375119775,1753533406613,-460.0,0.00019178,2]
[375119776,1753533406644,-460.0,0.00019178,2]
[375119777,1753533406670,-307.74959897,0.00019178,2]
[375119778,1753533406693,-460.0,0.00019178,2]
[375119779,1753533406716,-383.8194912,0.00019178,2]
[375119780,1753533406739,-601.62808415,0.00019178,2]
[375119781,1753533406761,-466.4065225,0.00019178,2]
[375119782,1753533406785,-749.02,0.00019178,2]
[375119783,1753533406807,-296.44700509,0.00019178,2]
[375119784,1753533492235,-300.0,0.00019177,2]
[375119785,1753533492261,-282.99369201,0.00019178,2]
[375119786,1753533492284,-699.08,0.00019178,2]
[375119787,1753533492305,-460.0,0.00019178,2]
[375119788,1753533492328,-460.0,0.00019178,2]
[375119789,1753533492352,-460.0,0.00019178,2]
[375119790,1753533492374,-460.0,0.00019178,2]
[375119791,1753533492397,-460.0,0.00019178,2]
[375119792,1753533492421,-847.23,0.00019178,2]
[375119793,1753533492444,-460.0,0.00019178,2]
[375119794,1753533492466,-196.580387,0.00019178,2]
[375119795,1753533492489,-460.0,0.00019178,2]
[375119796,1753533492512,-460.0,0.00019178,2]
[375119797,1753533492534,-460.0,0.00019178,2]
[375119798,1753533492558,-460.0,0.00019178,2]
[375119799,1753533492583,-460.0,0.00019178,2]
[375119800,1753533492608,-460.0,0.00019178,2]
[375119801,1753533492631,-154.11592099,0.00019178,2]
[375119802,1753533557428,-300.0,0.00019177,2]
[375119803,1753533557450,-460.0,0.00019178,2]
[375119804,1753533557473,-460.0,0.00019178,2]
[375119805,1753533557494,-460.0,0.00019178,2]
[375119806,1753533557516,-974.35,0.00019178,2]
[375119807,1753533557539,-1345.65,0.00019178,2]
[375119808,1753533933726,150.0,0.00019792,30]
[375119809,1753533934141,180.81,0.00021591,30]
[375119810,1753533951805,162.0,0.00017,2]
[375119812,1753533954032,159.906694,0.00013699,2]
[375119813,1753533966538,162.0,0.00017,2]
[375119814,1753534037105,-159.32212032,0.00018402,2]
[375119824,1753534147102,-4232.30675052,0.00018402,2]
[375119865,1753534231786,-95.17351106,0.00018402,2]
[375119867,1753534231796,-150.0,0.000189,2]
[375119869,1753534231805,-337.0,0.00019177,2]
[375119871,1753534231815,-369.14053888,0.00019178,2]
[375119880,1753534231894,-111.85063245,0.00019178,2]
[375119882,1753534231903,-460.0,0.00019178,2]
[375119883,1753534231913,-460.0,0.00019178,2]
[375119886,1753534231923,-460.0,0.00019178,2]
[375119888,1753534231935,-460.0,0.00019178,2]
[375119889,1753534231943,-414.63875641,0.00019178,2]
[375120318,1753534237672,-45.36124359,0.00019178,2]
[375120319,1753534237681,-460.0,0.00019178,2]
[375120321,1753534237691,-287.51209431,0.00019178,2]
[375120323,1753534237701,-460.0,0.00019178,2]
[375120325,1753534237711,-460.0,0.00019178,2]
[375120327,1753534237720,-30.76567901,0.00019178,2]
[375120329,1753534237730,-538.96729095,0.00019251,2]
[375120331,1753534237739,-728.19129694,0.00019351,2]
[375120334,1753534237755,-458.254136,0.00019351,2]
[375120336,1753534237764,-501.31404994,0.00019352,2]
[375120338,1753534237773,-460.0,0.00019449,2]
[375120340,1753534237783,-23.01929357,0.00019449,2]
[375120342,1753534237794,-436.98070643,0.00019449,2]
[375120343,1753534237803,-205.82925969,0.0001945,2]
[375120345,1753534237813,-448.67845388,0.0001945,2]
[375120347,1753534237823,-39.28604522,0.0001945,2]
[375120349,1753534237835,-1354.32395478,0.0001945,2]
[375120351,1753534237844,-460.0,0.0001945,2]
[375120352,1753534237854,-450.67604522,0.0001945,2]
[375120354,1753534237870,-9.32395478,0.0001945,2]
[375120356,1753534237880,-460.0,0.0001945,2]
[375120357,1753534237889,-460.0,0.0001945,2]
[375120358,1753534237898,-1024.18,0.0001945,2]
[375120359,1753534237907,-460.0,0.0001945,2]
[375120360,1753534237917,-681.86,0.0001945,2]
[375120361,1753534237926,-692.7,0.0001945,2]
[375120362,1753534237936,-460.0,0.0001945,2]
[375120363,1753534237946,-460.0,0.0001945,2]
[375120364,1753534237955,-460.0,0.0001945,2]
[375120365,1753534237965,-954.62,0.0001945,2]
[375120366,1753534237975,-460.0,0.0001945,2]
[375120367,1753534237984,-460.0,0.0001945,2]
[375120368,1753534237993,-460.0,0.0001945,2]
[375120369,1753534238003,-460.0,0.0001945,2]
[375120370,1753534238012,-460.0,0.0001945,2]
[375120371,1753534238022,-460.0,0.0001945,2]
[375120372,1753534238031,-460.0,0.0001945,2]
[375120373,1753534238041,-460.0,0.0001945,2]
[375120374,1753534238050,-460.0,0.00019451,2]
[375120375,1753534238060,-460.0,0.00019451,2]
[375120376,1753534238069,-460.0,0.00019451,2]
[375120377,1753534238078,-460.0,0.00019451,2]
[375120378,1753534238088,-460.0,0.00019451,2]
[375120379,1753534238097,-460.19531222,0.00019451,2]
[375120380,1753534238107,-460.0,0.00019451,2]
[375120381,1753534238116,-264.91596639,0.00019451,2]
[375120382,1753534238126,-460.0,0.00019451,2]
[375120383,1753534238135,-460.0,0.00019451,2]
[375120384,1753534238145,-460.0,0.00019451,2]
[375120385,1753534238155,-460.0,0.00019451,2]
[375120386,1753534238165,-466.92204182,0.00019451,2]
[375120387,1753534238175,-460.0,0.00019451,2]
[375120388,1753534238184,-933.75,0.00019451,2]
[375120389,1753534238195,-460.0,0.00019451,2]
[375120390,1753534238204,-460.0,0.00019451,2]
[375120391,1753534238215,-460.0,0.00019451,2]
[375120392,1753534238225,-460.0,0.00019451,2]
[375120393,1753534238235,-894.17,0.00019451,2]
[375120394,1753534238245,-460.0,0.00019451,2]
[375120395,1753534238256,-1251.59,0.00019451,2]
[375120396,1753534238267,-460.0,0.00019451,2]
[375120397,1753534238277,-2445.82,0.00019451,2]
[375120398,1753534238287,-460.0,0.00019451,2]
[375120399,1753534238297,-955.3,0.00019451,2]
[375120400,1753534238306,-460.0,0.00019451,2]
[375120401,1753534238316,-749.04,0.00019451,2]
[375120402,1753534238327,-460.0,0.00019451,2]
[375120403,1753534238449,-460.0,0.00019451,2]
[375120404,1753534238459,-460.0,0.00019451,2]
[375120405,1753534238469,-600.36,0.00019451,2]
[375120406,1753534238479,-460.0,0.00019451,2]
[375120407,1753534238488,-811.93,0.00019451,2]
[375120408,1753534238498,-460.0,0.00019451,2]
[375120409,1753534238508,-460.0,0.00019451,2]
[375120410,1753534238518,-460.0,0.00019451,2]
[375120411,1753534238527,-460.0,0.00019451,2]
[375120412,1753534238537,-460.0,0.00019451,2]
[375120413,1753534238547,-460.0,0.00019452,2]
[375120414,1753534238557,-460.0,0.00019452,2]
[375120415,1753534238567,-435.09204422,0.00019452,2]
[375120416,1753534239809,-2425.36,0.0001945,2]
[375120417,1753534239820,-24.90795578,0.00019452,2]
[375120418,1753534239832,-460.0,0.00019452,2]
[375120419,1753534239842,-460.0,0.00019452,2]
[375120420,1753534239851,-460.0,0.00019452,2]
[375120421,1753534239862,-460.0,0.00019452,2]
[375120422,1753534239884,-206.73,0.00019674,2]
[375120423,1753534239894,-460.0,0.00019723,2]
[375120424,1753534239904,-460.0,0.00019723,2]
[375120425,1753534239915,-1393.61,0.00019724,2]
[375120426,1753534239925,-460.0,0.00019724,2]
[375120427,1753534239935,-460.0,0.00019724,2]
[375120428,1753534239945,-460.0,0.00019724,2]
[375120429,1753534239955,-386.87,0.00019724,2]
[375120430,1753534239965,-1024.18,0.00019724,2]
[375120431,1753534239975,-214.54,0.00019724,2]
[375120432,1753534239985,-681.86,0.00019724,2]
[375120433,1753534239994,-692.7,0.00019724,2]
[375120434,1753534240004,-460.0,0.00019724,2]
[375120435,1753534240014,-138.24204422,0.00019724,2]
[375120627,1753534242839,-422.14764017,0.0001945,2]
[375120765,1753534246673,-460.0,0.00019449,2]
[375120767,1753534246684,-37.85235983,0.0001945,2]
[375120769,1753534246693,-460.0,0.0001945,2]
[375120771,1753534246703,-1333.31,0.0001945,2]
[375120773,1753534246714,-321.75795578,0.00019724,2]
[375120775,1753534246724,-460.0,0.00019724,2]
[375120777,1753534246734,-954.62,0.00019724,2]
[375120779,1753534246744,-460.0,0.00019724,2]
[375120781,1753534246753,-460.0,0.00019724,2]
[375120783,1753534246763,-460.0,0.00019724,2]
[375120785,1753534246773,-460.0,0.00019724,2]
[375120787,1753534246783,-460.0,0.00019724,2]
[375120789,1753534246793,-460.0,0.00019724,2]
[375120791,1753534246803,-354.38070396,0.00019724,2]
[375120793,1753534246813,-740.81581058,0.00019724,2]
[375120796,1753534246836,-264.91596639,0.00019724,2]
[375120891,1753534413368,437.74107781,0.0001701,2]
[375120894,1753535231159,159.906694,0.00013699,2]
[375120909,1753535357148,-5000.0,0.00017922,2]
[375120910,1753535357170,-534.45246197,0.00018286,2]
[375120911,1753535360095,-177.3002182,0.00018286,2]
[375120948,1753535431996,-302.41995518,0.00018103,2]
[375120951,1753535432013,-4697.58004482,0.00018103,2]
[375120953,1753535432027,-21.29574193,0.00018286,2]
[375120956,1753535432042,-150.0,0.000189,2]
[375120958,1753535432054,-1200.0,0.00019176,2]
[375120960,1753535432065,-300.0,0.00019177,2]
[375120962,1753535432077,-300.0,0.00019177,2]
[375120964,1753535432088,-247.14161229,0.00019178,2]
[375120967,1753535432119,-70.52144641,0.00019178,2]
[375120969,1753535432132,-460.0,0.00019178,2]